[Event "Early-Titled-Tuesday-Blitz-August-29-2023"]
[Site "Chess.com"]
[Date "2023.08.29"]
[Round "3"]
[White "bipe137"]
[Black "AleksandraMilovic"]
[Result "1/2-1/2"]
[WhiteElo "2408"]
[BlackElo "2080"]
[TimeControl "180+1"]
[EndTime "8:26:19 PDT"]
[Termination "Game drawn - insufficient material"]

1. d4 {[%clk 0:03:00.9]} 1... d5 {[%clk 0:02:59.4]} 2. c4 {[%clk 0:03:01.5]}
2... e6 {[%clk 0:02:59.6]} 3. Nc3 {[%clk 0:03:02]} 3... Nf6 {[%clk 0:03:00.2]}
4. cxd5 {[%clk 0:03:02.5]} 4... exd5 {[%clk 0:03:00.1]} 5. Bg5 {[%clk
0:03:03.1]} 5... Be7 {[%clk 0:03:00.2]} 6. e3 {[%clk 0:03:03.5]} 6... c6 {[%clk
0:03:00.8]} 7. Bd3 {[%clk 0:03:04]} 7... Nbd7 {[%clk 0:02:56.6]} 8. Nge2 {[%clk
0:03:02.6]} 8... h6 {[%clk 0:02:56]} 9. Bh4 {[%clk 0:03:02.6]} 9... Nh5 {[%clk
0:02:56]} 10. Bxe7 {[%clk 0:03:02.3]} 10... Qxe7 {[%clk 0:02:56.9]} 11. g4
{[%clk 0:03:02.8]} 11... Nhf6 {[%clk 0:02:56.5]} 12. Ng3 {[%clk 0:03:03.4]}
12... Nb6 {[%clk 0:02:55.8]} 13. h3 {[%clk 0:03:02.9]} 13... g6 {[%clk
0:02:46.4]} 14. Qf3 {[%clk 0:02:59.8]} 14... Bd7 {[%clk 0:02:41.9]} 15. O-O-O
{[%clk 0:02:58.7]} 15... O-O-O {[%clk 0:02:41.3]} 16. Kb1 {[%clk 0:02:58.8]}
16... Rde8 {[%clk 0:02:27.6]} 17. Rc1 {[%clk 0:02:55]} 17... Kb8 {[%clk
0:02:26.1]} 18. Rhe1 {[%clk 0:02:51.9]} 18... Nc8 {[%clk 0:02:21.7]} 19. Na4
{[%clk 0:02:50.8]} 19... Nd6 {[%clk 0:02:20.6]} 20. Nc5 {[%clk 0:02:50.9]} 20...
Nfe4 {[%clk 0:02:17.8]} 21. Bxe4 {[%clk 0:02:49]} 21... Nxe4 {[%clk 0:02:18.2]}
22. Ngxe4 {[%clk 0:02:48.7]} 22... dxe4 {[%clk 0:02:18.4]} 23. Qf4+ {[%clk
0:02:48.9]} 23... Ka8 {[%clk 0:02:16.4]} 24. Qc7 {[%clk 0:02:45.3]} 24... Be6
{[%clk 0:02:05.9]} 25. Qxe7 {[%clk 0:02:43.4]} 25... Rxe7 {[%clk 0:02:06]} 26.
Nxe4 {[%clk 0:02:43]} 26... Bxg4 {[%clk 0:02:04.3]} 27. hxg4 {[%clk 0:02:40]}
27... Rxe4 {[%clk 0:02:03.8]} 28. f3 {[%clk 0:02:40.7]} 28... Re7 {[%clk
0:02:02.1]} 29. Kc2 {[%clk 0:02:40.6]} 29... h5 {[%clk 0:02:00.5]} 30. Rh1
{[%clk 0:02:38.5]} 30... Rxe3 {[%clk 0:02:00]} 31. gxh5 {[%clk 0:02:38.1]} 31...
gxh5 {[%clk 0:01:49.4]} 32. Rcg1 {[%clk 0:02:37.8]} 32... a6 {[%clk 0:01:48.6]}
33. Rg5 {[%clk 0:02:36.5]} 33... Rxf3 {[%clk 0:01:40.7]} 34. Rgxh5 {[%clk
0:02:35.9]} 34... Rxh5 {[%clk 0:01:29.9]} 35. Rxh5 {[%clk 0:02:36.8]} 35... Re3
{[%clk 0:01:28.2]} 36. d5 {[%clk 0:02:36.6]} 36... cxd5 {[%clk 0:01:28]} 37.
Rxd5 {[%clk 0:02:36.2]} 37... Re7 {[%clk 0:01:28.1]} 38. a4 {[%clk 0:02:33.6]}
38... Kb8 {[%clk 0:01:28.1]} 39. a5 {[%clk 0:02:33.9]} 39... Kc8 {[%clk
0:01:27.4]} 40. b4 {[%clk 0:02:34.2]} 40... Rd7 {[%clk 0:01:25.2]} 41. Rh5
{[%clk 0:02:33.5]} 41... Kd8 {[%clk 0:01:25.5]} 42. Kc3 {[%clk 0:02:34]} 42...
Ke7 {[%clk 0:01:25.7]} 43. Kc4 {[%clk 0:02:34.7]} 43... Ke6 {[%clk 0:01:25.8]}
44. Kc5 {[%clk 0:02:34.5]} 44... f5 {[%clk 0:01:25.4]} 45. Rh8 {[%clk
0:02:34.4]} 45... Ke5 {[%clk 0:01:24.9]} 46. Re8+ {[%clk 0:02:33.9]} 46... Kf4
{[%clk 0:01:22.9]} 47. b5 {[%clk 0:02:31.8]} 47... axb5 {[%clk 0:01:22.5]} 48.
Kxb5 {[%clk 0:02:32.7]} 48... Kg3 {[%clk 0:01:19.4]} 49. Kb6 {[%clk 0:02:32]}
49... f4 {[%clk 0:01:18.8]} 50. Rg8+ {[%clk 0:02:32.6]} 50... Kf2 {[%clk
0:01:17.8]} 51. Rb8 {[%clk 0:02:31.5]} 51... f3 {[%clk 0:01:16.6]} 52. Rxb7
{[%clk 0:02:31.8]} 52... Rxb7+ {[%clk 0:01:01.5]} 53. Kxb7 {[%clk 0:02:28.7]}
53... Ke2 {[%clk 0:01:02.4]} 54. a6 {[%clk 0:02:29.5]} 54... f2 {[%clk
0:01:02.9]} 55. a7 {[%clk 0:02:30.4]} 55... f1=Q {[%clk 0:01:03.5]} 56. a8=Q
{[%clk 0:02:31.3]} 56... Qh1+ {[%clk 0:01:03.9]} 57. Kb8 {[%clk 0:02:32.2]}
57... Qxa8+ {[%clk 0:01:04.3]} 58. Kxa8 {[%clk 0:02:33.1]} 1/2-1/2

[Event "Early-Titled-Tuesday-Blitz-August-29-2023"]
[Site "Chess.com"]
[Date "2023.08.29"]
[Round "3"]
[White "DreamsAreFake"]
[Black "Elsa167"]
[Result "1-0"]
[WhiteElo "2654"]
[BlackElo "2869"]
[TimeControl "180+1"]
[EndTime "8:26:22 PDT"]
[Termination "DreamsAreFake won on time"]

1. e4 {[%clk 0:03:00.9]} 1... c5 {[%clk 0:02:59]} 2. Nf3 {[%clk 0:03:01]} 2...
d6 {[%clk 0:02:59.2]} 3. Bb5+ {[%clk 0:03:01.5]} 3... Nd7 {[%clk 0:02:59.1]} 4.
O-O {[%clk 0:03:00.1]} 4... a6 {[%clk 0:02:58.9]} 5. Bd3 {[%clk 0:02:59]} 5...
Ngf6 {[%clk 0:02:58.5]} 6. Re1 {[%clk 0:02:58.2]} 6... g6 {[%clk 0:02:58.4]} 7.
c3 {[%clk 0:02:58.5]} 7... Bg7 {[%clk 0:02:58.7]} 8. Bc2 {[%clk 0:02:59.1]} 8...
O-O {[%clk 0:02:59.4]} 9. a4 {[%clk 0:02:58.9]} 9... b6 {[%clk 0:02:58.8]} 10.
d4 {[%clk 0:02:51.8]} 10... cxd4 {[%clk 0:02:58.4]} 11. cxd4 {[%clk 0:02:52.2]}
11... Bb7 {[%clk 0:02:58.8]} 12. Nc3 {[%clk 0:02:52.6]} 12... Rc8 {[%clk
0:02:49.8]} 13. h3 {[%clk 0:02:51.9]} 13... Rc7 {[%clk 0:02:45.4]} 14. Bf4
{[%clk 0:02:49.7]} 14... Qa8 {[%clk 0:02:14.5]} 15. Qd2 {[%clk 0:02:49.2]} 15...
Rcc8 {[%clk 0:01:43.9]} 16. Rac1 {[%clk 0:02:48.6]} 16... Rfe8 {[%clk 0:01:41]}
17. Bb1 {[%clk 0:02:45.9]} 17... e5 {[%clk 0:01:39.8]} 18. Bh6 {[%clk 0:02:45]}
18... exd4 {[%clk 0:01:35.8]} 19. Nxd4 {[%clk 0:02:42.4]} 19... Bxh6 {[%clk
0:00:50.3]} 20. Qxh6 {[%clk 0:02:43.3]} 20... Nxe4 {[%clk 0:00:49.2]} 21. Bxe4
{[%clk 0:02:34.8]} 21... Bxe4 {[%clk 0:00:49.2]} 22. f3 {[%clk 0:02:34.9]} 22...
Bb7 {[%clk 0:00:37.9]} 23. Qg5 {[%clk 0:02:34.9]} 23... Re5 {[%clk 0:00:34.1]}
24. Rxe5 {[%clk 0:02:33.3]} 24... dxe5 {[%clk 0:00:34.4]} 25. Nf5 {[%clk
0:02:33.8]} 25... Kh8 {[%clk 0:00:25.8]} 26. Rd1 {[%clk 0:02:29.9]} 26... gxf5
{[%clk 0:00:12.5]} 27. Rxd7 {[%clk 0:02:29.3]} 27... Rc6 {[%clk 0:00:07]} 28.
Rd8+ {[%clk 0:02:26.3]} 1-0

[Event "Early-Titled-Tuesday-Blitz-August-29-2023"]
[Site "Chess.com"]
[Date "2023.08.29"]
[Round "3"]
[White "Mesa_1"]
[Black "Khromkin"]
[Result "1-0"]
[WhiteElo "2570"]
[BlackElo "2331"]
[TimeControl "180+1"]
[EndTime "8:26:22 PDT"]
[Termination "Mesa_1 won by resignation"]

1. Nf3 {[%clk 0:03:00.9]} 1... c5 {[%clk 0:02:59.3]} 2. e4 {[%clk 0:02:54]} 2...
Nc6 {[%clk 0:02:59.7]} 3. c3 {[%clk 0:02:54.4]} 3... d5 {[%clk 0:02:58.7]} 4.
exd5 {[%clk 0:02:55.1]} 4... Qxd5 {[%clk 0:02:59.2]} 5. d4 {[%clk 0:02:56]} 5...
Bg4 {[%clk 0:02:59.5]} 6. dxc5 {[%clk 0:02:56.3]} 6... Qxd1+ {[%clk 0:02:59.1]}
7. Kxd1 {[%clk 0:02:57.2]} 7... Nf6 {[%clk 0:02:59]} 8. Be3 {[%clk 0:02:55]}
8... g6 {[%clk 0:02:53.9]} 9. Nd2 {[%clk 0:02:54.4]} 9... Bg7 {[%clk 0:02:54.3]}
10. h3 {[%clk 0:02:51.5]} 10... Bf5 {[%clk 0:02:36.4]} 11. g4 {[%clk 0:02:49.1]}
11... Bd7 {[%clk 0:02:29.5]} 12. Nd4 {[%clk 0:02:49.4]} 12... Nd5 {[%clk
0:02:26.9]} 13. Nxc6 {[%clk 0:02:43.6]} 13... Bxc6 {[%clk 0:02:25.6]} 14. Rg1
{[%clk 0:02:39.1]} 14... Nxe3+ {[%clk 0:02:23.6]} 15. fxe3 {[%clk 0:02:40]}
15... O-O-O {[%clk 0:02:17.4]} 16. Kc2 {[%clk 0:02:38.1]} 16... h5 {[%clk
0:02:09.1]} 17. Bg2 {[%clk 0:02:35.2]} 17... hxg4 {[%clk 0:02:03.4]} 18. Bxc6
{[%clk 0:02:34.4]} 18... bxc6 {[%clk 0:02:03.8]} 19. hxg4 {[%clk 0:02:28.4]}
19... Rh2 {[%clk 0:02:04.3]} 20. Rad1 {[%clk 0:02:28.3]} 20... Re2 {[%clk
0:01:55.4]} 21. Rg3 {[%clk 0:02:18.3]} 21... Be5 {[%clk 0:01:49.4]} 22. Rf3
{[%clk 0:02:15.8]} 22... f6 {[%clk 0:01:49.9]} 23. Kc1 {[%clk 0:02:13.4]} 23...
Rg2 {[%clk 0:01:41.6]} 24. Nc4 {[%clk 0:02:07.6]} 24... Rxd1+ {[%clk 0:01:39.2]}
25. Kxd1 {[%clk 0:02:08.5]} 25... Bc7 {[%clk 0:01:37.1]} 26. Rh3 {[%clk
0:02:02.9]} 26... Rxg4 {[%clk 0:01:36.4]} 27. b3 {[%clk 0:02:02]} 27... g5
{[%clk 0:01:30.4]} 28. Rh8+ {[%clk 0:02:02.1]} 28... Kd7 {[%clk 0:01:30.6]} 29.
Ra8 {[%clk 0:01:59.9]} 29... Rg1+ {[%clk 0:01:28.6]} 30. Ke2 {[%clk 0:01:59.4]}
30... g4 {[%clk 0:01:29.1]} 31. Rxa7 {[%clk 0:01:59.3]} 31... g3 {[%clk
0:01:25.7]} 32. Nb6+ {[%clk 0:01:59.4]} 32... Ke6 {[%clk 0:01:13.2]} 33. Rxc7
{[%clk 0:01:58.4]} 33... Rg2+ {[%clk 0:00:48.2]} 34. Kf3 {[%clk 0:01:55.2]}
34... Rxa2 {[%clk 0:00:48.7]} 35. Rxc6+ {[%clk 0:01:54.1]} 1-0

[Event "Early-Titled-Tuesday-Blitz-August-29-2023"]
[Site "Chess.com"]
[Date "2023.08.29"]
[Round "3"]
[White "Msb2"]
[Black "lamomiajunior"]
[Result "1-0"]
[WhiteElo "3029"]
[BlackElo "2800"]
[TimeControl "180+1"]
[EndTime "8:26:23 PDT"]
[Termination "Msb2 won by resignation"]

1. d4 {[%clk 0:03:00.9]} 1... d5 {[%clk 0:03:00.1]} 2. c4 {[%clk 0:03:00.9]}
2... c6 {[%clk 0:03:00.7]} 3. Nf3 {[%clk 0:03:01.4]} 3... Nf6 {[%clk 0:03:01.3]}
4. Nc3 {[%clk 0:03:02.3]} 4... e6 {[%clk 0:03:01.9]} 5. Qc2 {[%clk 0:03:02.1]}
5... Be7 {[%clk 0:02:55.8]} 6. e4 {[%clk 0:03:01.4]} 6... dxe4 {[%clk
0:02:55.5]} 7. Nxe4 {[%clk 0:03:02.3]} 7... Nxe4 {[%clk 0:02:52.6]} 8. Qxe4
{[%clk 0:03:03.2]} 8... Nd7 {[%clk 0:02:50.5]} 9. Bd3 {[%clk 0:03:03]} 9... Nf6
{[%clk 0:02:51]} 10. Qe2 {[%clk 0:03:03.5]} 10... Bb4+ {[%clk 0:02:48.8]} 11.
Bd2 {[%clk 0:03:03.6]} 11... Bxd2+ {[%clk 0:02:49.3]} 12. Qxd2 {[%clk
0:03:04.5]} 12... O-O {[%clk 0:02:49.9]} 13. O-O {[%clk 0:03:02.9]} 13... b6
{[%clk 0:02:49.6]} 14. Rad1 {[%clk 0:02:59.3]} 14... Bb7 {[%clk 0:02:50]} 15.
Qe3 {[%clk 0:02:59.8]} 15... Qc7 {[%clk 0:02:49]} 16. c5 {[%clk 0:02:59.2]}
16... Rad8 {[%clk 0:02:47.2]} 17. h3 {[%clk 0:02:52.8]} 17... Rfe8 {[%clk
0:02:39.2]} 18. Rfe1 {[%clk 0:02:52.1]} 18... h6 {[%clk 0:02:27]} 19. Ne5 {[%clk
0:02:51.6]} 19... bxc5 {[%clk 0:01:59.3]} 20. dxc5 {[%clk 0:02:52.5]} 20... Nd5
{[%clk 0:01:59.9]} 21. Qf3 {[%clk 0:02:44]} 21... Qe7 {[%clk 0:01:35.7]} 22. Rc1
{[%clk 0:02:37.1]} 22... a5 {[%clk 0:01:29.3]} 23. Bb1 {[%clk 0:02:35]} 23...
Nf6 {[%clk 0:01:22.8]} 24. Qe3 {[%clk 0:02:20.5]} 24... Rd5 {[%clk 0:01:19.7]}
25. a3 {[%clk 0:02:19.4]} 25... Red8 {[%clk 0:01:18.6]} 26. b4 {[%clk
0:02:19.5]} 26... axb4 {[%clk 0:01:19.5]} 27. axb4 {[%clk 0:02:20.4]} 27... Rd2
{[%clk 0:01:12.4]} 28. Nd3 {[%clk 0:02:13.7]} 28... R2xd3 {[%clk 0:00:54.3]} 29.
Bxd3 {[%clk 0:02:14.6]} 29... Nd5 {[%clk 0:00:54.3]} 30. Qe4 {[%clk 0:02:13.9]}
30... Nf6 {[%clk 0:00:53.2]} 31. Qf3 {[%clk 0:02:14.3]} 31... Rd4 {[%clk
0:00:52.5]} 32. Bc4 {[%clk 0:02:12]} 32... Nd5 {[%clk 0:00:44.1]} 33. Bxd5
{[%clk 0:02:11]} 33... Rxd5 {[%clk 0:00:44.2]} 34. b5 {[%clk 0:02:05.3]} 34...
Rxc5 {[%clk 0:00:39.7]} 35. Qa3 {[%clk 0:02:05.5]} 35... Rxc1 {[%clk 0:00:39.2]}
36. Qxe7 {[%clk 0:02:05.8]} 36... Rxe1+ {[%clk 0:00:39.9]} 37. Kh2 {[%clk
0:02:06.5]} 1-0

[Event "Early-Titled-Tuesday-Blitz-August-29-2023"]
[Site "Chess.com"]
[Date "2023.08.29"]
[Round "3"]
[White "Vesper2018"]
[Black "VSanduleac"]
[Result "1/2-1/2"]
[WhiteElo "2599"]
[BlackElo "2421"]
[TimeControl "180+1"]
[EndTime "8:26:31 PDT"]
[Termination "Game drawn by agreement"]

1. e4 {[%clk 0:03:00.9]} 1... g6 {[%clk 0:02:59.2]} 2. d4 {[%clk 0:03:00.4]}
2... Bg7 {[%clk 0:02:59.2]} 3. Nc3 {[%clk 0:03:00.7]} 3... c6 {[%clk 0:02:59.4]}
4. f4 {[%clk 0:02:57]} 4... Qb6 {[%clk 0:02:58.4]} 5. Nf3 {[%clk 0:02:56.3]}
5... d5 {[%clk 0:02:58.3]} 6. e5 {[%clk 0:02:53.6]} 6... Bg4 {[%clk 0:02:58]} 7.
Be2 {[%clk 0:02:44.9]} 7... Nh6 {[%clk 0:02:57]} 8. Na4 {[%clk 0:02:41.3]} 8...
Qa5+ {[%clk 0:02:56]} 9. c3 {[%clk 0:02:41]} 9... Nd7 {[%clk 0:02:55.9]} 10. b4
{[%clk 0:02:40.3]} 10... Qc7 {[%clk 0:02:55.2]} 11. Nc5 {[%clk 0:02:35]} 11...
Nxc5 {[%clk 0:02:54.6]} 12. bxc5 {[%clk 0:02:34.9]} 12... b6 {[%clk 0:02:54.2]}
13. Ba3 {[%clk 0:02:31.2]} 13... Bxf3 {[%clk 0:02:53.1]} 14. Bxf3 {[%clk
0:02:31.1]} 14... e6 {[%clk 0:02:53.7]} 15. g4 {[%clk 0:02:20.6]} 15... Bf8
{[%clk 0:02:52.4]} 16. cxb6 {[%clk 0:02:13.2]} 16... axb6 {[%clk 0:02:51.6]} 17.
Bxf8 {[%clk 0:02:12.7]} 17... Kxf8 {[%clk 0:02:51.5]} 18. O-O {[%clk 0:02:10]}
18... Kg7 {[%clk 0:02:49.6]} 19. a4 {[%clk 0:02:04.7]} 19... Rhc8 {[%clk
0:02:44.9]} 20. Qd2 {[%clk 0:01:49.9]} 20... c5 {[%clk 0:02:41.5]} 21. c4 {[%clk
0:01:47.3]} 21... cxd4 {[%clk 0:02:40.7]} 22. cxd5 {[%clk 0:01:46.2]} 22... exd5
{[%clk 0:02:40.2]} 23. Qxd4 {[%clk 0:01:34.7]} 23... Ra5 {[%clk 0:02:28.8]} 24.
e6+ {[%clk 0:01:30.5]} 24... Kg8 {[%clk 0:02:26]} 25. Bxd5 {[%clk 0:01:24.2]}
25... Rd8 {[%clk 0:02:14]} 26. exf7+ {[%clk 0:01:20.5]} 26... Nxf7 {[%clk
0:02:14.6]} 27. Bxf7+ {[%clk 0:01:18.7]} 27... Kxf7 {[%clk 0:02:14.5]} 28. Qe3
{[%clk 0:01:13.8]} 28... Qc5 {[%clk 0:02:10.4]} 29. Qxc5 {[%clk 0:01:12.5]}
29... bxc5 {[%clk 0:02:10.4]} 30. f5 {[%clk 0:00:54.8]} 30... Rd4 {[%clk
0:02:09.7]} 31. h3 {[%clk 0:00:43.9]} 31... Raxa4 {[%clk 0:02:07]} 32. fxg6+
{[%clk 0:00:40.8]} 32... Kxg6 {[%clk 0:02:06.2]} 33. Rxa4 {[%clk 0:00:40.2]}
33... Rxa4 {[%clk 0:02:05.3]} 34. Kg2 {[%clk 0:00:39.6]} 1/2-1/2

[Event "Early-Titled-Tuesday-Blitz-August-29-2023"]
[Site "Chess.com"]
[Date "2023.08.29"]
[Round "3"]
[White "vi_pranav"]
[Black "twofoxniel"]
[Result "1-0"]
[WhiteElo "2995"]
[BlackElo "2658"]
[TimeControl "180+1"]
[EndTime "8:26:36 PDT"]
[Termination "vi_pranav won by resignation"]

1. d4 {[%clk 0:03:00.9]} 1... d5 {[%clk 0:02:59.8]} 2. Bf4 {[%clk 0:03:00.3]}
2... c6 {[%clk 0:03:00.2]} 3. e3 {[%clk 0:03:00.1]} 3... Qb6 {[%clk 0:03:00.6]}
4. Qc1 {[%clk 0:02:59.2]} 4... Bf5 {[%clk 0:03:00.5]} 5. Nd2 {[%clk 0:02:58.5]}
5... Nd7 {[%clk 0:03:00.2]} 6. Ngf3 {[%clk 0:02:58.4]} 6... e6 {[%clk
0:03:00.7]} 7. c4 {[%clk 0:02:58.6]} 7... Ngf6 {[%clk 0:03:00]} 8. Be2 {[%clk
0:02:58.7]} 8... Be7 {[%clk 0:03:00.3]} 9. O-O {[%clk 0:02:58.9]} 9... O-O
{[%clk 0:02:59.5]} 10. a3 {[%clk 0:02:59.3]} 10... Rfe8 {[%clk 0:02:58.3]} 11.
b4 {[%clk 0:02:56.6]} 11... Ne4 {[%clk 0:02:58]} 12. Nxe4 {[%clk 0:02:55.3]}
12... Bxe4 {[%clk 0:02:58.9]} 13. c5 {[%clk 0:02:53.7]} 13... Qd8 {[%clk
0:02:58.6]} 14. b5 {[%clk 0:02:53.6]} 14... Qa5 {[%clk 0:02:51.4]} 15. bxc6
{[%clk 0:02:49.2]} 15... bxc6 {[%clk 0:02:51]} 16. Nd2 {[%clk 0:02:49.8]} 16...
e5 {[%clk 0:02:29.8]} 17. dxe5 {[%clk 0:02:17.8]} 17... Nxc5 {[%clk 0:02:15.8]}
18. Nxe4 {[%clk 0:02:17.3]} 18... dxe4 {[%clk 0:02:05.5]} 19. Bc4 {[%clk
0:02:01.9]} 19... Rad8 {[%clk 0:01:29.9]} 20. h3 {[%clk 0:01:58.8]} 20... Qa4
{[%clk 0:01:14.1]} 21. Qc3 {[%clk 0:01:50.9]} 21... Nd3 {[%clk 0:01:04.6]} 22.
Bg3 {[%clk 0:01:44]} 22... c5 {[%clk 0:00:44.5]} 23. Rab1 {[%clk 0:01:41.6]}
23... h6 {[%clk 0:00:42.2]} 24. Bb5 {[%clk 0:01:39.1]} 1-0

[Event "Early-Titled-Tuesday-Blitz-August-29-2023"]
[Site "Chess.com"]
[Date "2023.08.29"]
[Round "3"]
[White "Romkachess"]
[Black "kleinebeer98"]
[Result "1-0"]
[WhiteElo "2553"]
[BlackElo "2765"]
[TimeControl "180+1"]
[EndTime "8:26:55 PDT"]
[Termination "Romkachess won by resignation"]

1. e4 {[%clk 0:02:53.1]} 1... e5 {[%clk 0:02:52.3]} 2. Bc4 {[%clk 0:02:26.1]}
2... Nf6 {[%clk 0:02:46]} 3. d3 {[%clk 0:02:25.6]} 3... c6 {[%clk 0:02:46.2]} 4.
Nf3 {[%clk 0:02:21.7]} 4... d5 {[%clk 0:02:45.3]} 5. Bb3 {[%clk 0:02:13.7]} 5...
a5 {[%clk 0:02:45.8]} 6. a4 {[%clk 0:02:13.5]} 6... Bb4+ {[%clk 0:02:45.4]} 7.
Bd2 {[%clk 0:02:12.6]} 7... O-O {[%clk 0:02:43.8]} 8. O-O {[%clk 0:02:07.3]}
8... Re8 {[%clk 0:02:43.2]} 9. Re1 {[%clk 0:02:05.3]} 9... Bg4 {[%clk
0:02:41.8]} 10. h3 {[%clk 0:02:05]} 10... Bxf3 {[%clk 0:02:42.2]} 11. Qxf3
{[%clk 0:01:49.1]} 11... dxe4 {[%clk 0:02:39.5]} 12. dxe4 {[%clk 0:01:38.1]}
12... Bxd2 {[%clk 0:02:37.2]} 13. Rd1 {[%clk 0:01:37.9]} 13... Qd4 {[%clk
0:02:25.4]} 14. Nxd2 {[%clk 0:01:31.8]} 14... Na6 {[%clk 0:02:24.1]} 15. Nc4
{[%clk 0:01:08.6]} 15... Qxe4 {[%clk 0:02:22.5]} 16. Qxe4 {[%clk 0:01:09]} 16...
Nxe4 {[%clk 0:02:23.1]} 17. Nxa5 {[%clk 0:01:09.9]} 17... Nac5 {[%clk
0:02:21.5]} 18. Nc4 {[%clk 0:01:06.5]} 18... Nxb3 {[%clk 0:02:15.9]} 19. cxb3
{[%clk 0:01:07.4]} 19... Nc5 {[%clk 0:02:16.4]} 20. Ra3 {[%clk 0:00:53.4]} 20...
f6 {[%clk 0:02:06.5]} 21. Nb6 {[%clk 0:00:51.7]} 21... Rad8 {[%clk 0:02:05.7]}
22. Rxd8 {[%clk 0:00:36.4]} 22... Rxd8 {[%clk 0:02:06.6]} 23. b4 {[%clk
0:00:36.5]} 23... Rd1+ {[%clk 0:02:01.5]} 24. Kh2 {[%clk 0:00:35.9]} 24... Nd3
{[%clk 0:02:02.4]} 25. Kg3 {[%clk 0:00:24.5]} 25... Nxb2 {[%clk 0:01:59.1]} 26.
f3 {[%clk 0:00:25.1]} 26... f5 {[%clk 0:01:54.1]} 27. Rb3 {[%clk 0:00:18.2]}
27... Nd3 {[%clk 0:01:54]} 28. Nc4 {[%clk 0:00:16.9]} 28... Kf7 {[%clk
0:01:43.4]} 29. Rxd3 {[%clk 0:00:15.9]} 1-0

[Event "Early-Titled-Tuesday-Blitz-August-29-2023"]
[Site "Chess.com"]
[Date "2023.08.29"]
[Round "3"]
[White "Dewarfd"]
[Black "MrAnnihilation"]
[Result "0-1"]
[WhiteElo "2199"]
[BlackElo "2424"]
[TimeControl "180+1"]
[EndTime "8:27:02 PDT"]
[Termination "MrAnnihilation won by resignation"]

1. d4 {[%clk 0:02:59.9]} 1... Nf6 {[%clk 0:02:58.4]} 2. e3 {[%clk 0:02:59.3]}
2... g6 {[%clk 0:02:51.8]} 3. Nf3 {[%clk 0:02:58]} 3... Bg7 {[%clk 0:02:52.3]}
4. Be2 {[%clk 0:02:56.9]} 4... O-O {[%clk 0:02:52.9]} 5. b4 {[%clk 0:02:55.8]}
5... a5 {[%clk 0:02:49.2]} 6. b5 {[%clk 0:02:54.9]} 6... c5 {[%clk 0:02:49.2]}
7. bxc6 {[%clk 0:02:53.7]} 7... bxc6 {[%clk 0:02:31.7]} 8. c4 {[%clk 0:02:50.9]}
8... c5 {[%clk 0:02:21.8]} 9. O-O {[%clk 0:02:48.7]} 9... cxd4 {[%clk 0:02:20]}
10. exd4 {[%clk 0:02:49]} 10... d6 {[%clk 0:02:11.8]} 11. Bb2 {[%clk 0:02:48]}
11... Ba6 {[%clk 0:01:55.4]} 12. Nbd2 {[%clk 0:02:34.5]} 12... Nbd7 {[%clk
0:01:49.2]} 13. Rb1 {[%clk 0:02:27.2]} 13... Qc7 {[%clk 0:01:48.9]} 14. Qc2
{[%clk 0:01:56.1]} 14... Rac8 {[%clk 0:01:47]} 15. Rfc1 {[%clk 0:01:55.7]} 15...
Rfe8 {[%clk 0:01:45.9]} 16. Qa4 {[%clk 0:01:54.6]} 16... e5 {[%clk 0:01:45.2]}
17. dxe5 {[%clk 0:01:46.2]} 17... dxe5 {[%clk 0:01:43.9]} 18. Bf1 {[%clk
0:01:38.2]} 18... Nc5 {[%clk 0:01:39.1]} 19. Qc2 {[%clk 0:01:36.9]} 19... e4
{[%clk 0:01:39.1]} 20. Nd4 {[%clk 0:01:30.7]} 20... e3 {[%clk 0:01:38.7]} 21.
fxe3 {[%clk 0:01:28.2]} 21... Ng4 {[%clk 0:01:31]} 22. N2f3 {[%clk 0:01:25.3]}
22... Nxe3 {[%clk 0:01:29.2]} 23. Qf2 {[%clk 0:01:23.4]} 23... Bh6 {[%clk
0:01:20.9]} 24. Re1 {[%clk 0:01:17.9]} 24... Nxc4 {[%clk 0:01:11.9]} 25. Rxe8+
{[%clk 0:01:12.8]} 25... Rxe8 {[%clk 0:01:11]} 26. Ba1 {[%clk 0:01:02.1]} 26...
Be3 {[%clk 0:01:10.1]} 0-1

[Event "Early-Titled-Tuesday-Blitz-August-29-2023"]
[Site "Chess.com"]
[Date "2023.08.29"]
[Round "3"]
[White "snowlord"]
[Black "chess94cu"]
[Result "1-0"]
[WhiteElo "2912"]
[BlackElo "2704"]
[TimeControl "180+1"]
[EndTime "8:27:05 PDT"]
[Termination "snowlord won by resignation"]

1. e4 {[%clk 0:03:00.9]} 1... d6 {[%clk 0:02:14.8]} 2. Nc3 {[%clk 0:02:14.7]}
2... Nf6 {[%clk 0:02:13.3]} 3. d4 {[%clk 0:02:14.6]} 3... Nbd7 {[%clk 0:02:08]}
4. f4 {[%clk 0:02:13.9]} 4... e5 {[%clk 0:02:08.6]} 5. Nf3 {[%clk 0:02:14.2]}
5... exd4 {[%clk 0:02:07.6]} 6. Qxd4 {[%clk 0:02:15.1]} 6... c6 {[%clk 0:02:07]}
7. Bd2 {[%clk 0:02:15.4]} 7... d5 {[%clk 0:02:07.5]} 8. exd5 {[%clk 0:01:59.5]}
8... Bc5 {[%clk 0:02:07.8]} 9. Qd3 {[%clk 0:02:00]} 9... O-O {[%clk 0:02:01.3]}
10. O-O-O {[%clk 0:01:59.8]} 10... Re8 {[%clk 0:01:46.4]} 11. Ng5 {[%clk
0:01:52]} 11... h6 {[%clk 0:01:43.1]} 12. Nge4 {[%clk 0:01:52.1]} 12... Nxe4
{[%clk 0:01:37.7]} 13. Nxe4 {[%clk 0:01:51.6]} 13... Qb6 {[%clk 0:01:33.7]} 14.
Kb1 {[%clk 0:01:34.8]} 14... cxd5 {[%clk 0:01:26]} 15. Qxd5 {[%clk 0:01:31.6]}
15... Bf8 {[%clk 0:01:19.6]} 16. Bc4 {[%clk 0:01:16.2]} 16... Re7 {[%clk
0:01:18.2]} 17. Bc3 {[%clk 0:01:10.1]} 17... Nb8 {[%clk 0:01:10.4]} 18. f5
{[%clk 0:01:06.7]} 18... Bd7 {[%clk 0:00:57.2]} 19. f6 {[%clk 0:00:56.1]} 19...
Re6 {[%clk 0:00:57.2]} 20. fxg7 {[%clk 0:00:55.5]} 20... Bxg7 {[%clk 0:00:58.1]}
21. Bxg7 {[%clk 0:00:53.5]} 21... Kxg7 {[%clk 0:00:59]} 22. Qd4+ {[%clk
0:00:54.2]} 22... Qxd4 {[%clk 0:00:58.4]} 23. Rxd4 {[%clk 0:00:53.9]} 23... Bc6
{[%clk 0:00:59.3]} 24. Bxe6 {[%clk 0:00:53.8]} 24... fxe6 {[%clk 0:00:59.2]} 25.
Nc5 {[%clk 0:00:52.1]} 25... b6 {[%clk 0:00:54.5]} 26. Nxe6+ {[%clk 0:00:52]}
26... Kf6 {[%clk 0:00:54.7]} 27. Nc7 {[%clk 0:00:52.9]} 1-0